bitfinex/quotes_SOLUSD_20260221
["timestamp","ask_amount","ask_price","bid_price","bid_amount"]
[1771665851844,4.24521083,85.12,85.094,11.75170987]
[1771665852044,4.24521083,85.12,85.095,1.10173874]
[1771665852733,4.28721177,85.13,85.095,1.10173874]
[1771665852933,0.04200094,85.129,85.095,1.10173874]
[1771665854227,0.04200094,85.129,85.097,1.10173874]
[1771665854846,0.04455398,85.128,85.097,1.10173874]
[1771665856246,4.24521083,85.13,85.098,11.75115748]
[1771665856544,7.93904485,85.16,85.098,11.75115748]
[1771665856545,4.29104053,85.14,85.101,1.10173874]
[1771665858349,0.04830256,85.139,85.102,11.75060515]
[1771665858540,0.04830256,85.139,85.103,1.10173874]
[1771665858738,4.24521083,85.13,85.103,1.10173874]
[1771665860153,0.05074928,85.129,85.1,1.10173874]
[1771665860338,0.05074928,85.119,85.1,11.75088131]
[1771665863151,0.05074928,85.119,85.087,11.75267667]
[1771665863538,0.05074928,85.119,85.088,1.10173874]
[1771665863949,4.24521083,85.13,85.091,1.10173874]
[1771665864144,0.05543582,85.129,85.091,1.10173874]
[1771665866860,0.05543582,85.129,85.093,1.10173874]
[1771665869261,4.24521083,85.13,85.09,4.24521083]
[1771665869262,4.24521083,85.13,85.095,1.10173874]
[1771665870461,11.74629547,85.134,85.101,1.10173874]
[1771665870762,4.24521083,85.13,85.101,1.10173874]
[1771665871362,29.35758676,85.157,85.103,1.10173874]
[1771665871663,4.24521083,85.13,85.105,1.10173874]
[1771665871866,4.30937512,85.13,85.107,1.10173874]
[1771665873960,0.06416429,85.13,85.109,1.10173874]
[1771665874860,4.24521083,85.14,85.109,1.10173874]
[1771665875459,11.74478211,85.145,85.109,1.10173874]
[1771665875661,4.24521083,85.14,85.11,1.10173874]
[1771665877885,4.24455955,85.14,85.111,11.74936259]
[1771665878063,4.24455955,85.14,85.112,1.10173874]
[1771665879669,0.07308447,85.138,85.112,1.10173874]
[1771665880752,0.07308447,85.138,85.112,12.85094227]
[1771665882860,0.07308447,85.138,85.113,1.10173874]
[1771665886576,11.74549853,85.139,85.113,1.10173874]
[1771665886783,4.24455955,85.14,85.115,1.10173874]
[1771665887171,4.32394835,85.14,85.115,1.10173874]
[1771665889377,16.06934843,85.14,85.115,1.10173874]
[1771665889568,16.06934843,85.14,85.116,1.10173874]
[1771665891282,0.08277797,85.152,85.118,1.10173874]
[1771665891486,4.24455955,85.15,85.118,1.10173874]
[1771665891781,4.32815776,85.15,85.118,1.10173874]
[1771665892184,0.08359821,85.149,85.118,1.10173874]
[1771665892679,0.08441002,85.154,85.131,1.10173874]
[1771665892864,4.24455955,85.16,85.131,1.10173874]
[1771665893063,0.08441002,85.162,85.131,1.10173874]
[1771665893863,0.08520766,85.176,85.133,1.10173874]
[1771665894063,4.24455955,85.18,85.151,1.10173874]
[1771665896279,4.24455955,85.18,85.153,1.10173874]
[1771665896986,0.08757037,85.208,85.171,1.10173874]
[1771665898979,0.08757037,85.208,85.172,11.74094772]
[1771665899181,0.08757037,85.208,85.173,1.10173874]
[1771665899386,0.1,85.21,85.173,1.10173874]
[1771665899685,4.24455955,85.23,85.191,1.10173874]
[1771665900990,0.08982044,85.236,85.203,1.10173874]
[1771665901686,4.34455955,85.22,85.203,1.10173874]
[1771665902188,0.1,85.22,85.203,1.10173874]
[1771665903793,0.1,85.22,85.205,1.10173874]
[1771665904373,4.24455955,85.23,85.205,1.05539137]
[1771665904575,4.34455955,85.24,85.205,1.05539137]
[1771665905286,0.19350039,85.239,85.207,1.05539137]
[1771665905983,4.24455955,85.23,85.207,1.05539137]
[1771665906373,0.19427224,85.234,85.207,1.05539137]
[1771665906892,0.19427224,85.234,85.18,50.73509952]
[1771665906893,5.3681907,85.22,85.199,11.73720188]
[1771665907189,4.24455955,85.21,85.18,4.24455955]
[1771665907787,1.12363115,85.214,85.18,4.24455955]
[1771665908170,1.12363115,85.214,85.181,11.73970721]
[1771665908774,1.1054452,85.209,85.177,1.09613037]
[1771665909582,1.04291785,85.238,85.201,1.11005401]
[1771665909776,1.04291785,85.238,85.211,1.11005401]
[1771665914489,4.24455955,85.23,85.211,1.11005401]
[1771665914884,1.04291785,85.229,85.203,1.11005401]
[1771665917000,1.04291785,85.228,85.203,1.11005401]
[1771665917579,1.04291785,85.228,85.201,11.73695144]
[1771665919905,1.04291785,85.219,85.194,1.11005401]
[1771665920088,1.04291785,85.209,85.188,1.11005401]
[1771665921301,1.04291785,85.209,85.182,1.11005401]
[1771665922904,11.73598723,85.208,85.182,1.11005401]
[1771665923205,1.04291785,85.207,85.182,1.11005401]
[1771665924101,1.04291785,85.207,85.183,11.73943157]
[1771665925103,1.04291785,85.207,85.183,12.84948558]
[1771665925917,1.04291785,85.207,85.183,1.11005401]
[1771665926114,1.04291785,85.207,85.183,51.84515353]
[1771665927992,1.04291785,85.205,85.183,1.11005401]
[1771665929006,1.04291785,85.205,85.171,62.4761409]
[1771665929206,1.04291785,85.205,85.173,1.11005401]
[1771665930116,1.04291785,85.203,85.173,1.11005401]
[1771665930415,1.04291785,85.199,85.173,1.11005401]
[1771665931396,1.04291785,85.199,85.175,1.11005401]
[1771665936006,1.04291785,85.199,85.173,50.73509952]
[1771665936007,1.04291785,85.205,85.177,1.11005401]
[1771665938625,1.04291785,85.205,85.179,1.15250672]
[1771665938833,29.33362233,85.227,85.181,1.15250672]
[1771665938834,11.73461005,85.218,85.181,1.15250672]
[1771665939324,12.79797448,85.218,85.181,1.15250672]
[1771665939701,1.06336443,85.217,85.181,1.15250672]
[1771665940813,1.06336443,85.215,85.183,1.15250672]
[1771665944750,11.73516088,85.214,85.184,11.73929376]
[1771665945034,1.06336443,85.229,85.191,1.15250672]
[1771665945209,11.73324643,85.228,85.193,1.15250672]
[1771665945405,11.73258079,85.233,85.201,1.15250672]
[1771665945923,12.79594522,85.233,85.201,1.15250672]
[1771665946229,1.06336443,85.232,85.201,1.15250672]
[1771665946903,1.06336443,85.229,85.202,1.15250672]
[1771665947619,1.06336443,85.229,85.203,1.15250672]
[1771665950725,1.06336443,85.219,85.196,1.15250672]
[1771665950912,5.3005736,85.21,85.19,1.15250672]
[1771665951320,1.06336443,85.21,85.19,1.15250672]
[1771665951832,1.06336443,85.208,85.185,1.15250672]
[1771665952521,11.73527101,85.214,85.185,1.15250672]
[1771665952729,1.06336443,85.213,85.185,1.15250672]
[1771665952916,4.23720917,85.21,85.185,1.15250672]
[1771665955036,4.23720917,85.21,85.187,1.15250672]
[1771665956022,11.73584949,85.209,85.187,1.15250672]
[1771665957656,4.23720917,85.21,85.187,1.15250672]
[1771665957945,1.06336443,85.211,85.187,1.15250672]
[1771665958833,11.73571177,85.21,85.187,1.15250672]
[1771665959338,12.7990762,85.21,85.187,1.15250672]
[1771665959721,12.79839378,85.215,85.189,1.15250672]
[1771665959924,1.06336443,85.213,85.189,1.15250672]
[1771665960325,1.06336443,85.209,85.189,1.15250672]
[1771665960717,1.06336443,85.218,85.189,1.15250672]
[1771665961339,1.06336443,85.228,85.191,1.15250672]
[1771665961538,1.06336443,85.228,85.192,50.73509952]
[1771665961729,1.06336443,85.228,85.193,1.15250672]
[1771665962049,1.06336443,85.228,85.195,1.15250672]
[1771665963524,1.06336443,85.228,85.197,1.15250672]
[1771665965325,1.06336443,85.228,85.198,11.73736472]
[1771665965637,1.06336443,85.228,85.201,1.15250672]
[1771665967636,1.06336443,85.228,85.203,1.05799392]
[1771665973034,1.0458107,85.227,85.203,1.05799392]
[1771665976356,1.0458107,85.227,85.204,1.09885625]
[1771665977037,1.0458107,85.225,85.203,50.73509952]
[1771665977247,1.0458107,85.219,85.203,50.73509952]
[1771665978032,1.0458107,85.218,85.203,50.73509952]
[1771665978252,1.0458107,85.218,85.188,1.09885625]
[1771665978574,4.23720917,85.21,85.188,1.09885625]
[1771665978860,4.23720917,85.21,85.182,1.15238096]
[1771665979840,11.73584949,85.209,85.182,1.15238096]
[1771665983669,4.23720917,85.2,85.182,1.15238096]
[1771665984067,11.73584949,85.209,85.182,1.15238096]
[1771665984465,4.23720917,85.2,85.182,1.15238096]
[1771665984765,4.23720917,85.2,85.169,1.15238096]
[1771665986578,11.73598723,85.208,85.171,1.15238096]
[1771665988671,3.69383402,85.236,85.171,1.15238096]
[1771665988979,4.23720917,85.21,85.171,1.15238096]
[1771665990369,4.23720917,85.21,85.173,1.15238096]
[1771665991575,41.06294361,85.235,85.172,11.74094772]
[1771665991576,4.23720917,85.22,85.181,1.15238096]
[1771665992462,11.73447235,85.219,85.182,1.15238096]
[1771665994471,11.73447235,85.219,85.184,1.15238096]
[1771665994667,4.23720917,85.21,85.184,1.15238096]
[1771665999880,4.23768033,85.21,85.184,1.15238096]
[1771666002163,11.73584949,85.209,85.184,1.15238096]
[1771666002359,11.73584949,85.209,85.178,1.15238096]
[1771666002360,4.23768033,85.2,85.178,1.15238096]
[1771666002578,4.23768033,85.2,85.173,56.75238096]
[1771666003290,4.23768033,85.2,85.174,1.15238096]
[1771666003682,11.73584949,85.209,85.159,1.15238096]
[1771666003683,4.23768033,85.19,85.159,1.15238096]
[1771666004677,4.23768033,85.19,85.161,1.15238096]
[1771666005886,11.73593514,85.209,85.171,1.15238096]
[1771666006886,11.73593514,85.209,85.173,1.15238096]
[1771666009094,11.73593514,85.209,85.175,1.15238096]
[1771666010969,41.06342538,85.234,85.18,4.23768033]
[1771666011172,41.06342538,85.234,85.181,1.15238096]
[1771666011173,4.23768033,85.21,85.181,1.15238096]
[1771666011488,4.23768033,85.2,85.178,55.6]
[1771666011875,4.23768033,85.2,85.179,1.15238096]
[1771666014300,15.97486654,85.2,85.173,1.15238096]
[1771666014479,11.73718621,85.2,85.173,1.15238096]
[1771666015295,11.73584949,85.209,85.175,1.15238096]
[1771666015504,4.23768033,85.2,85.17,1.15238096]
[1771666016789,41.07547323,85.209,85.17,1.15238096]
[1771666018682,41.07547323,85.209,85.147,55.6]
[1771666018683,41.07547323,85.209,85.153,1.15238096]
[1771666018882,4.23768033,85.19,85.153,1.15238096]
[1771666019692,11.73860474,85.189,85.153,1.15238096]
[1771666020398,4.23768033,85.18,85.153,1.15238096]
[1771666021186,41.08511661,85.189,85.153,1.15238096]
[1771666021386,11.73860474,85.189,85.161,1.15238096]
[1771666021597,11.7370892,85.2,85.171,1.15238096]
[1771666021797,11.73584949,85.209,85.171,1.15238096]
[1771666021994,4.23768033,85.2,85.161,1.15238096]
[1771666022197,4.23768033,85.19,85.161,1.15238096]
[1771666022504,4.23768033,85.19,85.151,1.15238096]
[1771666023683,41.08511661,85.189,85.151,1.15238096]
[1771666024404,11.73860474,85.189,85.161,1.15238096]
[1771666026799,33.58052301,85.2,85.161,1.15238096]
[1771666026800,41.08029436,85.199,85.161,1.15238096]
[1771666028012,4.23768033,85.21,85.161,1.15238096]
[1771666028405,4.23768033,85.2,85.161,1.15238096]
[1771666032002,41.08029436,85.199,85.16,4.23768033]
[1771666032197,41.08029436,85.199,85.156,1.15238096]
[1771666033209,46.94251425,85.211,85.156,1.15238096]
[1771666033210,4.23768033,85.19,85.156,1.15238096]
[1771666034403,4.23768033,85.2,85.161,1.15238096]
[1771666035820,4.23768033,85.19,85.161,1.15238096]
[1771666036720,1.09364257,85.189,85.15,4.23768033]
[1771666038632,41.0855989,85.188,85.15,4.23768033]
[1771666038928,1.09364257,85.187,85.151,1.10178748]
[1771666039424,1.09364257,85.187,85.152,1.10178748]
[1771666041423,1.09364257,85.185,85.152,1.10178748]
[1771666043627,1.09364257,85.183,85.152,1.10178748]
[1771666044624,1.09364257,85.181,85.152,1.10178748]
[1771666044922,4.23768033,85.17,85.143,1.10178748]
[1771666045125,1.09364257,85.169,85.143,1.10178748]
[1771666048615,4.23768033,85.17,85.143,1.10178748]
[1771666048616,1.09364257,85.167,85.143,1.10178748]
[1771666050726,1.09364257,85.165,85.143,1.10178748]
[1771666054612,1.09364257,85.163,85.143,1.10178748]
[1771666056729,11.74232638,85.162,85.143,1.10178748]
[1771666057734,67.40428572,104.83,85.14,4.23768033]
[1771666057915,1.120666,85.179,85.141,1.15718297]
[1771666059736,1.120666,85.177,85.141,1.15718297]
[1771666061948,1.120666,85.175,85.141,1.15718297]
[1771666063531,1.120666,85.173,85.141,1.15718297]
[1771666067448,1.120666,85.171,85.141,1.15718297]
[1771666068137,1.120666,85.177,85.143,1.15718297]
[1771666068447,1.120666,85.187,85.151,1.15718297]
[1771666069952,1.120666,85.179,85.151,1.15718297]
[1771666074125,11.74012068,85.178,85.151,1.15718297]
[1771666074331,1.120666,85.177,85.151,1.15718297]
[1771666078452,11.74039635,85.176,85.151,1.15718297]
[1771666078653,1.120666,85.175,85.151,1.15718297]
[1771666081257,11.74067203,85.174,85.151,1.15718297]
[1771666082664,11.73860474,85.189,85.161,1.15718297]
[1771666083355,12.85927074,85.189,85.161,1.15718297]
[1771666083750,1.120666,85.188,85.158,1.15718297]
[1771666084860,1.120666,85.188,85.16,4.24139216]
[1771666086058,11.73888034,85.187,85.16,4.24139216]
[1771666087154,12.85954634,85.187,85.16,4.24139216]
[1771666088467,11.73825539,85.192,85.162,1.11888029]
[1771666088767,1.15418621,85.191,85.162,1.11888029]
[1771666090771,11.73756386,85.197,85.171,1.13794262]
[1771666090969,12.85554808,85.197,85.171,1.13794262]
[1771666091274,1.11798422,85.196,85.171,1.13794262]
[1771666096374,1.11798422,85.194,85.171,1.13794262]
[1771666099759,1.11798422,85.192,85.171,1.13794262]
[1771666100785,11.73832916,85.191,85.165,1.13794262]
[1771666100981,1.11798422,85.19,85.165,1.13794262]
[1771666101870,1.11798422,85.189,85.165,1.13794262]
[1771666103468,11.73874254,85.188,85.165,1.13794262]
[1771666105972,1.11798422,85.193,85.165,1.13794262]
[1771666107573,1.11798422,85.193,85.167,1.13794262]
[1771666107776,1.11798422,85.193,85.171,1.13794262]
[1771666110269,1.11798422,85.191,85.171,1.13794262]
[1771666111381,1.11798422,85.189,85.162,1.13794262]
[1771666111885,11.73874254,85.188,85.162,1.13794262]
[1771666112184,1.11798422,85.187,85.162,1.13794262]
[1771666112572,4.24139216,85.18,85.153,1.13794262]
[1771666112788,1.11798422,85.179,85.153,1.13794262]
[1771666112973,1.11798422,85.179,85.154,1.13794262]
[1771666117173,1.11798422,85.179,85.156,1.13794262]
[1771666117472,1.11798422,85.196,85.156,1.13794262]
[1771666117873,11.73777803,85.195,85.156,1.13794262]
[1771666118079,1.07029337,85.194,85.156,1.13794262]
[1771666118793,1.07029337,85.189,85.156,1.13794262]
[1771666119984,1.07029337,85.189,85.13,55.6]
[1771666119985,1.07029337,85.187,85.161,1.05807597]
[1771666120693,11.73874254,85.188,85.161,1.05807597]
[1771666121282,12.80903591,85.188,85.161,1.05807597]
[1771666121582,1.07029337,85.187,85.161,1.05807597]
[1771666122695,1.07029337,85.187,85.163,1.05807597]
[1771666122880,1.07029337,85.193,85.163,1.05807597]
[1771666124799,1.07029337,85.193,85.165,1.05807597]
[1771666126905,1.07029337,85.191,85.165,1.05807597]
[1771666130591,1.07029337,85.191,85.167,1.05807597]
[1771666131286,1.07029337,85.189,85.167,1.05807597]
[1771666131801,11.73846695,85.19,85.167,1.05807597]
[1771666131987,11.73762633,85.197,85.167,1.05807597]
[1771666132390,1.07029337,85.196,85.167,1.05807597]
[1771666133107,1.07029337,85.194,85.167,1.05807597]
[1771666133686,11.73777803,85.195,85.16,55.6]
[1771666133687,1.07029337,85.189,85.16,55.6]
[1771666134795,1.07029337,85.189,85.15,4.23951546]
[1771666135382,1.07029337,85.187,85.15,4.23951546]
[1771666135589,1.07029337,85.187,85.151,1.05807597]
[1771666139705,1.07029337,85.185,85.151,1.05807597]
[1771666141288,1.07029337,85.185,85.115,3.69383402]
[1771666141289,11.73901814,85.186,85.161,1.05807597]
[1771666141712,1.07029337,85.185,85.161,1.05807597]
[1771666143799,1.07029337,85.185,85.125,3.69383402]
[1771666143800,1.07029337,85.179,85.14,1.05807597]
[1771666144013,1.07029337,85.159,85.121,1.05807597]
[1771666144230,1.07029337,85.139,85.111,1.05807597]
[1771666145718,1.07029337,85.137,85.111,1.05807597]
[1771666147517,1.07029337,85.137,85.105,1.05807597]
[1771666147902,1.09651555,85.135,85.105,1.05807597]
[1771666148321,1.09651555,85.129,85.105,1.05807597]
[1771666150338,41.11069347,85.136,85.105,1.05807597]
[1771666150508,1.12298342,85.133,85.105,1.05807597]
[1771666152833,11.74553553,85.139,85.111,1.11027713]
[1771666153408,12.86851895,85.139,85.111,1.11027713]
[1771666153811,1.12298342,85.138,85.111,1.11027713]
[1771666160026,11.74577445,85.137,85.111,1.11027713]
[1771666160226,12.86875787,85.137,85.111,1.11027713]
[1771666160624,11.74577445,85.137,85.111,1.11027713]
[1771666160830,1.12298342,85.136,85.111,1.11027713]
[1771666161024,1.12298342,85.141,85.113,1.11027713]
[1771666161237,1.12298342,85.139,85.113,1.11027713]
[1771666161934,1.12298342,85.137,85.113,1.11027713]
[1771666173448,1.12298342,85.16,85.131,1.11027713]
[1771666174753,1.12298342,85.158,85.131,1.11027713]
[1771666175333,4.23951546,85.15,85.117,11.74853437]
[1771666175533,1.12298342,85.149,85.118,1.11027713]
[1771666176644,1.12298342,85.147,85.118,1.11027713]
[1771666177352,1.12298342,85.147,85.119,11.74825832]
[1771666177654,1.13200763,85.156,85.121,1.07631252]
[1771666178752,1.13200763,85.154,85.123,1.07631252]
[1771666181061,1.13200763,85.154,85.125,1.07631252]
[1771666182236,1.13200763,85.154,85.131,1.07631252]
[1771666184159,1.13200763,85.17,85.141,1.07631252]
[1771666185251,1.13200763,85.17,85.151,1.07631252]
[1771666185637,12.87243021,85.176,85.151,1.07631252]
[1771666186032,1.13200763,85.175,85.151,1.07631252]
[1771666187654,1.13200763,85.173,85.151,1.07631252]
[1771666197049,1.13200763,85.171,85.151,1.07631252]
[1771666198362,1.13200763,85.176,85.151,1.07631252]
[1771666199352,1.13200763,85.176,85.16,4.24298559]
[1771666200253,11.74053419,85.175,85.151,1.07631252]
[1771666200569,1.13200763,85.174,85.151,1.07631252]
[1771666200952,1.13200763,85.174,85.123,1.07631252]
[1771666201148,1.13200763,85.159,85.111,1.07631252]
[1771666201347,1.13200763,85.159,85.121,1.07631252]
[1771666201565,1.13200763,85.159,85.131,1.07631252]
[1771666202446,1.13200763,85.164,85.141,1.07631252]
[1771666202649,1.13200763,85.164,85.15,4.24298559]
[1771666203149,1.13200763,85.173,85.151,1.07631252]
[1771666203373,1.13200763,85.173,85.16,4.24298559]
[1771666203770,1.13200763,85.173,85.155,1.07631252]
[1771666204474,11.73914365,85.186,85.161,1.07631252]
[1771666204646,29.34329601,85.199,85.12,4.24298559]
[1771666204647,12.86937235,85.198,85.171,1.07631252]
[1771666204852,1.13200763,85.197,85.171,1.07631252]
[1771666205062,1.13200763,85.189,85.14,4.24298559]
[1771666205263,1.13200763,85.169,85.12,4.24298559]
[1771666205572,1.13200763,85.169,85.117,11.74843582]
[1771666205868,1.13200763,85.169,85.12,4.24298559]
[1771666206474,4.24298559,85.17,85.12,4.24298559]
[1771666206475,1.13200763,85.159,85.12,4.24298559]
[1771666206968,1.13200763,85.159,85.13,4.24298559]
[1771666207172,1.13200763,85.159,85.131,1.07631252]
[1771666208978,1.10812438,85.157,85.131,1.07631252]
[1771666211687,1.10942726,85.155,85.131,1.07631252]
[1771666212360,1.10942726,85.155,85.13,4.24298559]
[1771666212864,1.10942726,85.161,85.141,1.12177034]
[1771666213067,1.10942726,85.179,85.141,1.12177034]
[1771666213981,1.10942726,85.169,85.141,1.12177034]
[1771666214181,1.10942726,85.169,85.13,4.24298559]
[1771666214182,1.10942726,85.169,85.135,1.12177034]
[1771666215076,1.10942726,85.167,85.135,1.12177034]
[1771666215590,1.10942726,85.193,85.16,4.24298559]
[1771666215772,1.10942726,85.193,85.161,1.12177034]
[1771666216082,1.10942726,85.189,85.161,1.12177034]
[1771666216280,1.10942726,85.189,85.151,1.12177034]
[1771666217192,1.10942726,85.187,85.151,1.12177034]
[1771666217870,1.10942726,85.219,85.181,1.12177034]
[1771666218083,12.84146861,85.237,85.211,1.12177034]
[1771666218389,12.84146861,85.237,85.175,3.69383402]
[1771666218390,1.10942726,85.236,85.183,1.12177034]
[1771666218692,1.10942726,85.229,85.2,4.24298559]
[1771666218898,1.10942726,85.219,85.19,4.24298559]
[1771666219074,1.10942726,85.219,85.186,1.12177034]
[1771666219277,1.10942726,85.217,85.19,4.24298559]
[1771666219969,1.10942726,85.217,85.173,11.74073032]
[1771666220197,1.10942726,85.217,85.18,4.24298559]
[1771666220989,1.10942726,85.217,85.181,1.12177034]
[1771666221685,1.10942726,85.215,85.181,1.12177034]
[1771666223094,1.10942726,85.213,85.181,1.12177034]
[1771666225484,11.73543632,85.212,85.181,1.12177034]
[1771666225690,1.10942726,85.211,85.181,1.12177034]
[1771666227491,11.73543632,85.212,85.17,4.24298559]
[1771666227492,1.10942726,85.199,85.17,4.24298559]
[1771666227693,1.10942726,85.199,85.168,1.12177034]
[1771666228375,1.10942726,85.199,85.162,1.12177034]
[1771666228595,1.10942726,85.189,85.162,1.12177034]
[1771666229785,1.10942726,85.187,85.155,1.12177034]
[1771666231698,1.10942726,85.187,85.16,4.24298559]
[1771666233678,4.24298559,85.18,85.149,1.12177034]
[1771666233901,1.10942726,85.179,85.143,1.12177034]
[1771666234087,1.10942726,85.169,85.143,1.12177034]
[1771666234987,1.10942726,85.167,85.143,1.12177034]
[1771666237390,1.10942726,85.165,85.143,1.12177034]
[1771666238202,1.06757576,85.159,85.131,1.05689282]
[1771666239414,1.06757576,85.157,85.131,1.05689282]
[1771666242414,1.06757576,85.189,85.151,1.05689282]
[1771666242701,1.06757576,85.179,85.15,4.24298559]
[1771666242996,1.06757576,85.179,85.145,1.05689282]
[1771666243588,1.06757576,85.177,85.146,1.05689282]
[1771666244802,1.06757576,85.177,85.151,1.05689282]
[1771666245586,12.80631486,85.189,85.171,1.05689282]
[1771666245787,11.7387391,85.189,85.171,1.05689282]
[1771666246792,1.06757576,85.19,85.171,1.05689282]
[1771666247808,1.06757576,85.188,85.17,4.24143102]
[1771666248707,1.06757576,85.188,85.164,1.05689282]
[1771666249405,1.06757576,85.186,85.164,1.05689282]
[1771666249612,1.06757576,85.186,85.151,1.05689282]
[1771666249792,1.06757576,85.186,85.152,1.05689282]
[1771666249999,1.06757576,85.169,85.137,1.05689282]
[1771666250716,1.06757576,85.169,85.14,4.24143102]
[1771666251512,1.06757576,85.167,85.14,4.24143102]
[1771666252093,1.06757576,85.167,85.14,5.29832384]
[1771666253109,1.06757576,85.167,85.141,1.05689282]
[1771666256004,4.24143102,85.18,85.151,1.05689282]
[1771666256005,1.06757576,85.177,85.151,1.05689282]
[1771666256211,1.06757576,85.177,85.16,4.24143102]
[1771666258304,1.06757576,85.177,85.158,1.05689282]
[1771666261507,11.74039635,85.176,85.158,1.05689282]
[1771666262102,12.80797211,85.176,85.158,1.05689282]
[1771666263118,1.06757576,85.176,85.161,1.05689282]
[1771666263305,1.06757576,85.176,85.17,5.29832384]
[1771666263510,1.06757576,85.176,85.171,1.05689282]
[1771666264021,11.73887645,85.188,85.171,1.05689282]
[1771666264711,12.80645221,85.188,85.171,1.05689282]
[1771666265017,12.80645221,85.188,85.125,3.69383402]
[1771666265018,1.06757576,85.187,85.151,1.05689282]
[1771666266723,11.73901814,85.186,85.151,1.05689282]
[1771666267022,1.06757576,85.179,85.151,1.05689282]
[1771666267714,1.06757576,85.179,85.16,4.24143102]
[1771666267916,1.06757576,85.179,85.161,1.06220591]
[1771666268530,1.06757576,85.179,85.153,1.06220591]
[1771666270412,1.03261874,85.185,85.154,11.74342955]
[1771666270613,11.73901814,85.186,85.161,1.02542446]
[1771666271337,12.77163688,85.186,85.161,1.02542446]
[1771666271520,1.03261874,85.185,85.161,1.02542446]
[1771666273615,1.03261874,85.201,85.17,4.24143102]
[1771666273916,1.03261874,85.199,85.168,1.02542446]
[1771666274131,1.03261874,85.189,85.161,1.02542446]
[1771666274927,1.03261874,85.187,85.161,1.02542446]
[1771666281430,1.03261874,85.185,85.161,1.02542446]
[1771666282014,1.03261874,85.199,85.171,1.02542446]
[1771666282341,11.73767509,85.196,85.171,1.02542446]
[1771666282740,1.03261874,85.201,85.181,1.02542446]
[1771666283539,1.03261874,85.221,85.191,1.02542446]
[1771666283942,1.03261874,85.221,85.201,1.02542446]
[1771666284725,1.03261874,85.219,85.182,1.02542446]
[1771666285542,1.03261874,85.217,85.182,1.02542446]
[1771666286750,1.03261874,85.215,85.182,1.02542446]
[1771666287843,1.03261874,85.213,85.19,4.24143102]
[1771666288831,1.03261874,85.213,85.191,1.02542446]
[1771666289955,1.03261874,85.211,85.18,4.24143102]
[1771666290543,1.03261874,85.211,85.181,1.02542446]
[1771666291831,1.03261874,85.209,85.181,1.02542446]
[1771666292230,4.24143102,85.2,85.17,4.24143102]
[1771666292546,1.03261874,85.199,85.17,4.24143102]
[1771666293051,1.03261874,85.199,85.17,5.26685548]
[1771666294557,1.03261874,85.197,85.171,1.02542446]
[1771666294849,1.03261874,85.206,85.181,1.02542446]
[1771666295941,1.03261874,85.206,85.19,4.24143102]
[1771666296143,1.03261874,85.206,85.188,1.02542446]
[1771666297355,1.03261874,85.212,85.188,1.02542446]
[1771666297936,1.03261874,85.212,85.19,4.24143102]
[1771666298258,1.03261874,85.212,85.188,1.02542446]
[1771666300761,11.73557404,85.211,85.188,1.02542446]
[1771666300973,1.02824193,85.21,85.188,1.02542446]
[1771666302254,1.02824193,85.208,85.188,1.02542446]
[1771666305863,11.73612496,85.207,85.188,1.02542446]
[1771666306164,12.76436689,85.207,85.188,1.02542446]
[1771666307463,12.76436689,85.207,85.162,29.35565845]
[1771666307464,1.02824193,85.232,85.191,1.05866923]
[1771666307646,1.02824193,85.229,85.191,1.05866923]
[1771666308855,41.06631622,85.228,85.191,1.05866923]
[1771666309056,1.02824193,85.227,85.191,1.05866923]
[1771666309967,1.02824193,85.219,85.191,1.05866923]
[1771666311856,1.02824193,85.217,85.191,1.05866923]
[1771666312967,1.02824193,85.209,85.183,1.05866923]
[1771666313164,1.02824193,85.199,85.181,52.44470011]
[1771666313367,1.02824193,85.199,85.169,1.05866923]
[1771666313673,1.02824193,85.189,85.155,10.62530004]
[1771666313972,1.02824193,85.189,85.095,47.00586561]
[1771666313973,4.23755559,85.17,85.128,1.05866923]
[1771666314176,4.23755559,85.16,85.128,1.05866923]
[1771666314349,5.36086188,85.193,85.131,1.05866923]
[1771666314550,4.23755559,85.17,85.131,1.05866923]
[1771666315152,4.23755559,85.17,85.14,4.23755559]
[1771666315372,4.23755559,85.18,85.141,1.05866923]
[1771666315754,1.02824193,85.177,85.141,1.05866923]
[1771666317370,6.13745789,85.192,85.118,1.05866923]
[1771666317371,1.02824193,85.149,85.118,1.05866923]
[1771666317551,1.02824193,85.149,85.119,1.05866923]
[1771666318147,1.02824193,85.149,85.121,1.05866923]
[1771666319154,1.02824193,85.169,85.131,1.05866923]
[1771666320174,1.02824193,85.167,85.131,1.05866923]
[1771666320381,4.23755559,85.16,85.131,1.05866923]
[1771666320755,4.23755559,85.16,85.133,1.05866923]
[1771666321059,1.02824193,85.159,85.133,1.05866923]
[1771666322381,1.02824193,85.159,85.135,1.05866923]
[1771666322556,12.76974108,85.168,85.135,1.05866923]
[1771666322961,1.02824193,85.194,85.151,1.05866923]
[1771666323272,5.26579752,85.19,85.151,1.05866923]
[1771666323456,1.02824193,85.189,85.151,1.05866923]
[1771666323978,1.02824193,85.189,85.153,1.05866923]
[1771666324158,1.02824193,85.187,85.153,1.05866923]
[1771666325272,11.73874254,85.188,85.153,1.05866923]
[1771666325579,1.02824193,85.187,85.153,1.05866923]
[1771666325968,11.737743,85.196,85.163,1.05866923]
[1771666326555,12.76598493,85.196,85.163,1.05866923]